fUSD/lending_fUSD_20250226
["ID","MTS","AMOUNT","RATE_DAILY","PERIOD"]
[354600345,1740595838846,-1844.05,0.00035616,14]
[354600350,1740595838904,-500.0,0.00035616,14]
[354600352,1740595838914,-500.0,0.00035616,14]
[354600354,1740595838924,-747.92,0.00035616,14]
[354600356,1740595838934,-643.40024206,0.00035616,14]
[354600357,1740595838946,-835.83,0.00035616,14]
[354600359,1740595838955,-1533.87,0.00035616,14]
[354600362,1740595838965,-738.6,0.00035616,14]
[354600363,1740595838975,-226.67710732,0.00035616,14]
[354600365,1740595838984,-1414.25,0.00035616,14]
[354600367,1740595838994,-865.08,0.00035616,14]
[354600369,1740595839004,-500.0,0.00035616,14]
[354600371,1740595839014,-500.0,0.00035616,14]
[354600373,1740595839023,-500.0,0.00035616,14]
[354600375,1740595839033,-633.98,0.00035616,14]
[354600377,1740595839043,-505.82117348,0.00035616,14]
[354600379,1740595839055,-600.33,0.00035616,14]
[354600381,1740595839065,-500.0,0.00035616,14]
[354600383,1740595839074,-500.0,0.00035616,14]
[354600385,1740595839083,-500.0,0.00035616,14]
[354600387,1740595839093,-580.36,0.00035616,14]
[354600389,1740595839102,-255.00885497,0.00035616,14]
[354600391,1740595839111,-742.35,0.00035616,14]
[354600393,1740595839120,-500.0,0.00035616,14]
[354600395,1740595839129,-500.0,0.00035616,14]
[354600397,1740595839138,-500.0,0.00035616,14]
[354600399,1740595839148,-732.49,0.00035616,14]
[354600401,1740595839157,-500.0,0.00035616,14]
[354600403,1740595839166,-527.1,0.00035616,14]
[354600405,1740595839175,-500.0,0.00035616,14]
[354600407,1740595839189,-500.0,0.00035616,14]
[354600409,1740595839198,-500.0,0.00035616,14]
[354600411,1740595839207,-935.03,0.00035616,14]
[354600413,1740595839216,-500.0,0.00035616,14]
[354600415,1740595839225,-501.45846162,0.00035616,14]
[354600416,1740595839236,-543.41,0.00035616,14]
[354600419,1740595839246,-500.0,0.00035616,14]
[354600420,1740595839255,-500.0,0.00035616,14]
[354600422,1740595839265,-500.0,0.00035616,14]
[354600424,1740595839275,-581.31,0.00035616,14]
[354600426,1740595839284,-500.0,0.00035616,14]
[354600428,1740595839293,-500.0,0.00035616,14]
[354600430,1740595839303,-500.0,0.00035616,14]
[354600432,1740595839315,-689.42,0.00035616,14]
[354600434,1740595839324,-689.49,0.00035616,14]
[354600436,1740595839333,-744.35,0.00035616,14]
[354600438,1740595839343,-571.34,0.00035616,14]
[354600440,1740595839352,-696.87,0.00035616,14]
[354600442,1740595839361,-500.0,0.00035616,14]
[354600444,1740595839370,-500.0,0.00035616,2]
[354600446,1740595839379,-1290.39,0.00035616,14]
[354600448,1740595839389,-507.24401618,0.00035616,2]
[354600450,1740595839398,-500.0,0.00035616,14]
[354600452,1740595839408,-500.0,0.00035616,14]
[354600454,1740595839417,-546.44,0.00035616,14]
[354600456,1740595839427,-385.83080341,0.00035616,14]
[354600458,1740595839436,-500.0,0.00035616,14]
[354600460,1740595839446,-500.0,0.00035616,14]
[354600462,1740595839455,-500.0,0.00035616,14]
[354600464,1740595839464,-500.0,0.00035616,14]
[354600466,1740595839474,-594.86,0.00035616,14]
[354600468,1740595839483,-1243.98,0.00035616,14]
[354600469,1740595839492,-500.0,0.00035616,14]
[354600471,1740595839502,-500.0,0.00035616,14]
[354600473,1740595839512,-500.0,0.00035616,14]
[354600476,1740595839522,-635.18,0.00035616,14]
[354600478,1740595839532,-617.43,0.00035616,14]
[354600479,1740595839541,-500.0,0.00035616,14]
[354600481,1740595839550,-858.4,0.00035616,14]
[354600483,1740595839561,-500.0,0.00035616,14]
[354600485,1740595839570,-665.21,0.00035616,14]
[354600487,1740595839579,-500.0,0.00035616,14]
[354600489,1740595839588,-500.0,0.00035616,14]
[354600491,1740595839597,-504.7658354,0.00035616,14]
[354600493,1740595839606,-500.0,0.00035616,14]
[354600495,1740595839615,-500.0,0.00035616,14]
[354600497,1740595839625,-500.0,0.00035616,14]
[354600499,1740595839634,-500.0,0.00035616,14]
[354600501,1740595839644,-1850.02,0.00035616,14]
[354600503,1740595839653,-1161.63,0.00035616,14]
[354600505,1740595839662,-500.0,0.00035616,14]
[354600507,1740595839671,-1036.04,0.00035616,14]
[354600509,1740595839681,-2240.29,0.00035616,14]
[354600511,1740595839691,-340.32127193,0.00035616,14]
[354600513,1740595839700,-500.0,0.00035616,14]
[354600515,1740595839709,-500.0,0.00035616,14]
[354600517,1740595839718,-500.0,0.00035616,14]
[354600519,1740595839727,-500.0,0.00035616,14]
[354600521,1740595839737,-500.0,0.00035616,14]
[354600523,1740595839746,-500.0,0.00035616,14]
[354600525,1740595839755,-500.0,0.00035616,14]
[354600527,1740595839764,-608.93,0.00035616,14]
[354600529,1740595839773,-500.0,0.00035616,14]
[354600530,1740595839783,-2310.8,0.00035616,14]
[354600533,1740595839793,-500.0,0.00035616,14]
[354600535,1740595839803,-506.40989492,0.00035616,14]
[354600536,1740595839813,-500.0,0.00035616,14]
[354600539,1740595839823,-500.0,0.00035616,14]
[354600541,1740595839832,-836.61,0.00035616,14]
[354600543,1740595839841,-500.0,0.00035616,14]
[354600545,1740595839850,-500.0,0.00035616,14]
[354600547,1740595839859,-1018.81,0.00035616,14]
[354600549,1740595839868,-688.36,0.00035616,14]
[354600552,1740595839877,-500.0,0.00035616,14]
[354600554,1740595839887,-1000.0,0.00035616,14]
[354600556,1740595839896,-871.69,0.00035616,14]
[354600558,1740595839905,-500.0,0.00035616,14]
[354600560,1740595839914,-500.0,0.00035616,14]
[354600562,1740595839927,-500.0,0.00035616,14]
[354600564,1740595839944,-500.0,0.00035616,14]
[354600566,1740595839954,-500.0,0.00035616,14]
[354600568,1740595839963,-1006.27,0.00035616,14]
[354600570,1740595839973,-595.91,0.00035616,14]
[354600572,1740595839984,-1116.49,0.00035616,14]
[354600574,1740595839993,-641.45,0.00035616,14]
[354600576,1740595840002,-500.0,0.00035616,14]
[354600578,1740595840012,-500.0,0.00035616,14]
[354600580,1740595840022,-500.0,0.00035616,14]
[354600582,1740595840031,-200.0,0.00035616,2]
[354600584,1740595840040,-500.0,0.00035616,14]
[354600586,1740595840049,-500.0,0.00035616,14]
[354600588,1740595840060,-500.0,0.00035616,14]
[354600590,1740595840070,-772.83,0.00035616,14]
[354600592,1740595840081,-500.0,0.00035616,14]
[354600594,1740595840090,-1308.99,0.00035616,14]
[354600596,1740595840100,-500.0,0.00035616,14]
[354600598,1740595840109,-935.7,0.00035616,14]
[354600600,1740595840119,-872.15,0.00035616,14]
[354600602,1740595840128,-500.0,0.00035616,14]
[354600604,1740595840138,-500.0,0.00035616,14]
[354600606,1740595840147,-500.0,0.00035616,14]
[354600608,1740595840156,-500.0,0.00035616,14]
[354600610,1740595840165,-500.0,0.00035616,14]
[354600612,1740595840175,-500.0,0.00035616,14]
[354600614,1740595840185,-500.0,0.00035616,14]
[354600616,1740595840194,-649.25,0.00035616,14]
[354600618,1740595840204,-500.0,0.00035616,14]
[354600620,1740595840213,-500.0,0.00035616,14]
[354600622,1740595840223,-500.0,0.00035616,14]
[354600624,1740595840233,-1082.33,0.00035616,14]
[354600626,1740595840242,-500.0,0.00035616,14]
[354600628,1740595840252,-513.39,0.00035616,14]
[354600630,1740595840261,-500.0,0.00035616,14]
[354600632,1740595840271,-1176.81,0.00035616,14]
[354600634,1740595840281,-500.0,0.00035616,14]
[354600636,1740595840291,-1686.11,0.00035616,14]
[354600638,1740595840300,-500.0,0.00035616,14]
[354600640,1740595840311,-500.0,0.00035616,14]
[354600642,1740595840320,-538.09,0.00035616,14]
[354600644,1740595840331,-547.24,0.00035616,14]
[354600646,1740595840340,-500.0,0.00035616,14]
[354600648,1740595840350,-212.48701223,0.00035616,14]
[354600650,1740595840360,-827.15,0.00035616,14]
[354600652,1740595840369,-500.0,0.00035616,14]
[354600654,1740595840379,-500.0,0.00035616,14]
[354600656,1740595840388,-500.0,0.00035616,14]
[354600658,1740595840397,-508.08184141,0.00035616,14]
[354600660,1740595840406,-811.61,0.00035616,14]
[354600662,1740595840416,-1804.38,0.00035616,14]
[354600664,1740595840425,-969.08,0.00035616,14]
[354600666,1740595840435,-504.7689669,0.00035616,14]
[354600668,1740595840444,-877.13,0.00035616,14]
[354600670,1740595840453,-2234.9,0.00035616,14]
[354600672,1740595840462,-582.64,0.00035616,14]
[354600674,1740595840471,-591.13,0.00035616,14]
[354600676,1740595840481,-1855.35,0.00035616,14]
[354600678,1740595840490,-500.0,0.00035616,14]
[354600680,1740595840499,-500.0,0.00035616,14]
[354600682,1740595840508,-500.0,0.00035616,14]
[354600684,1740595840517,-500.0,0.00035616,14]
[354600686,1740595840526,-500.0,0.00035616,14]
[354600688,1740595840536,-500.0,0.00035616,14]
[354600690,1740595840545,-1019.59,0.00035616,14]
[354600692,1740595840554,-500.0,0.00035616,14]
[354600693,1740595840564,-2120.11,0.00035616,14]
[354600695,1740595840573,-219.41863273,0.00035616,14]
[354600697,1740595840583,-1021.29,0.00035616,14]
[354600700,1740595840592,-1613.94,0.00035616,14]
[354600702,1740595840602,-303.25803702,0.00035616,14]
[354600703,1740595840611,-506.11975319,0.00035616,14]
[354600705,1740595840621,-572.27,0.00035616,14]
[354600707,1740595840631,-500.0,0.00035616,14]
[354600709,1740595840640,-500.0,0.00035616,14]
[354600711,1740595840650,-1105.78,0.00035616,14]
[354600714,1740595840660,-500.0,0.00035616,14]
[354600715,1740595840669,-982.48,0.00035616,14]
[354600718,1740595840679,-500.0,0.00035616,14]
[354600719,1740595840688,-2258.29,0.00035616,14]
[354600722,1740595840698,-502.58730291,0.00035616,14]
[354600724,1740595840707,-500.0,0.00035616,14]
[354600726,1740595840717,-500.0,0.00035616,14]
[354600728,1740595840726,-500.0,0.00035616,14]
[354600730,1740595840736,-500.0,0.00035616,14]
[354600732,1740595840746,-1496.14,0.00035616,14]
[354600734,1740595840755,-782.62,0.00035616,14]
[354600736,1740595840765,-1313.98,0.00035616,14]
[354600738,1740595840774,-633.15,0.00035616,14]
[354600740,1740595840784,-500.0,0.00035616,14]
[354600742,1740595840793,-1614.67,0.00035616,14]
[354600744,1740595840804,-777.94,0.00035616,14]
[354600746,1740595840815,-500.0,0.00035616,14]
[354600748,1740595840826,-630.05,0.00035616,14]
[354600750,1740595840835,-1119.74,0.00035616,14]
[354600752,1740595840844,-500.0,0.00035616,14]
[354600753,1740595840853,-500.0,0.00035616,14]
[354600755,1740595840863,-500.0,0.00035616,14]
[354600757,1740595840872,-1550.01,0.00035616,14]
[354600760,1740595840882,-500.0,0.00035616,14]
[354600762,1740595840892,-898.54,0.00035616,14]
[354600764,1740595840902,-500.0,0.00035616,14]
[354600765,1740595840912,-500.0,0.00035616,14]
[354600768,1740595840921,-666.5,0.00035616,14]
[354600769,1740595840936,-986.29,0.00035616,14]
[354600771,1740595840945,-500.0,0.00035616,14]
[354600773,1740595840956,-1800.45,0.00035616,14]
[354600775,1740595840965,-1038.19,0.00035616,14]
[354600777,1740595840976,-722.35,0.00035616,14]
[354600779,1740595840985,-500.0,0.00035616,14]
[354600781,1740595840998,-777.79,0.00035616,14]
[354600783,1740595841009,-1016.47,0.00035616,14]
[354600786,1740595841019,-583.31,0.00035616,14]
[354600788,1740595841029,-746.65,0.00035616,14]
[354600790,1740595841039,-529.67,0.00035616,14]
[354600792,1740595841048,-500.0,0.00035616,14]
[354600794,1740595841059,-500.0,0.00035616,14]
[354600796,1740595841068,-500.0,0.00035616,14]
[354600798,1740595841077,-806.05,0.00035616,14]
[354600800,1740595841087,-886.7,0.00035616,14]
[354600802,1740595841096,-820.28,0.00035616,14]
[354600804,1740595841105,-500.0,0.00035616,14]
[354600806,1740595841115,-1501.14,0.00035616,14]
[354600808,1740595841124,-500.0,0.00035616,14]
[354600810,1740595841134,-500.0,0.00035616,14]
[354600812,1740595841143,-921.34,0.00035616,14]
[354600814,1740595841152,-500.0,0.00035616,14]
[354600815,1740595841162,-699.59,0.00035616,14]
[354600817,1740595841172,-1003.76,0.00035616,14]
[354600820,1740595841182,-500.0,0.00035616,14]
[354600822,1740595841191,-1495.63,0.00035616,14]
[354600824,1740595841201,-500.0,0.00035616,14]
[354600826,1740595841210,-834.44,0.00035616,14]
[354600828,1740595841220,-831.3,0.00035616,14]
[354600829,1740595841229,-675.74,0.00035616,14]
[354600832,1740595841239,-500.0,0.00035616,14]
[354600834,1740595841248,-917.03,0.00035616,14]
[354600836,1740595841258,-551.68,0.00035616,14]
[354600838,1740595841267,-681.62,0.00035616,14]
[354600839,1740595841276,-1958.47,0.00035616,14]
[354600841,1740595841285,-1067.6,0.00035616,14]
[354600843,1740595841295,-500.0,0.00035616,14]
[354600844,1740595841304,-500.0,0.00035616,14]
[354600845,1740595841314,-636.63,0.00035616,14]
[354600846,1740595841323,-500.0,0.00035616,14]
[354600847,1740595841332,-1007.51,0.00035616,14]
[354600849,1740595841341,-500.0,0.00035616,14]
[354600851,1740595841350,-500.0,0.00035616,14]
[354600853,1740595841359,-500.0,0.00035616,14]
[354600854,1740595841368,-500.0,0.00035616,14]
[354600856,1740595841378,-500.0,0.00035616,14]
[354600858,1740595841387,-826.67,0.00035616,14]
[354600860,1740595841397,-532.65,0.00035616,14]
[354600884,1740595841654,-500.0,0.00035616,14]
[354600885,1740595841728,-500.0,0.00035616,14]
[354600886,1740595841738,-1255.98,0.00035616,14]
[354600887,1740595841747,-1084.65,0.00035616,14]
[354600888,1740595841756,-510.04,0.00035616,14]
[354600889,1740595841766,-634.72,0.00035616,14]
[354600890,1740595841775,-1101.48,0.00035616,14]
[354600891,1740595841784,-842.79,0.00035616,14]
[354600892,1740595841793,-500.0,0.00035616,14]
[354600893,1740595841803,-861.46,0.00035616,14]
[354600894,1740595841814,-500.0,0.00035616,14]
[354600895,1740595841823,-765.4,0.00035616,14]
[354600896,1740595841833,-604.9,0.00035616,14]
[354600897,1740595841842,-500.0,0.00035616,14]
[354600898,1740595841852,-500.0,0.00035616,14]
[354600899,1740595841862,-500.0,0.00035616,14]
[354600901,1740595841871,-1116.67,0.00035616,14]
[354600903,1740595841880,-500.0,0.00035616,14]
[354600905,1740595841890,-500.0,0.00035616,14]
[354600907,1740595841900,-500.0,0.00035616,14]
[354600909,1740595841910,-1441.7,0.00035616,14]
[354600911,1740595841919,-754.28,0.00035616,14]
[354600913,1740595841929,-502.17652688,0.00035616,14]
[354600915,1740595841940,-929.23,0.00035616,14]
[354600917,1740595841953,-500.0,0.00035616,14]
[354600919,1740595841963,-1403.66,0.00035616,14]
[354600921,1740595841972,-500.0,0.00035616,14]
[354600923,1740595841982,-718.11,0.00035616,14]
[354600925,1740595841993,-1217.5,0.00035616,14]
[354600927,1740595842002,-1107.15,0.00035616,14]
[354600929,1740595842011,-1834.12,0.00035616,14]
[354600931,1740595842020,-500.0,0.00035616,14]
[354600933,1740595842030,-1996.52,0.00035616,14]
[354600935,1740595842040,-902.19,0.00035616,14]
[354600937,1740595842049,-561.55,0.00035616,14]
[354600939,1740595842061,-150.0,0.00035616,14]
[354600941,1740595842071,-565.94,0.00035616,14]
[354600943,1740595842080,-500.0,0.00035616,14]
[354600945,1740595842091,-500.0,0.00035616,14]
[354600947,1740595842100,-500.0,0.00035616,14]
[354600948,1740595842110,-500.0,0.00035616,14]
[354600950,1740595842120,-469.41542728,0.00035616,14]
[354600952,1740595842130,-563.43,0.00035616,14]
[354600954,1740595842141,-500.0,0.00035616,14]
[354600956,1740595842150,-500.0,0.00035616,14]
[354600958,1740595842160,-3952.9104907,0.00035616,14]
[354600960,1740595842170,-1467.19,0.00035616,14]
[354600962,1740595842180,-500.0,0.00035616,14]
[354600964,1740595842191,-1321.18,0.00035616,14]
[354600966,1740595842202,-419.44077622,0.00035616,14]
[354600968,1740595842212,-500.0,0.00035616,14]
[354600970,1740595842221,-500.0,0.00035616,14]
[354600972,1740595842231,-1902.42,0.00035616,14]
[354600974,1740595842240,-500.0,0.00035616,14]
[354600976,1740595842250,-500.0,0.00035616,14]
[354600978,1740595842259,-500.0,0.00035616,14]
[354600980,1740595842268,-1140.97,0.00035616,14]
[354600982,1740595842277,-528.46,0.00035616,14]
[354600984,1740595842287,-500.0,0.00035616,14]
[354600986,1740595842296,-651.71,0.00035616,14]
[354600988,1740595842308,-500.0,0.00035616,14]
[354600990,1740595842317,-528.44116494,0.00035616,14]
[354600992,1740595842327,-1073.87,0.00035616,14]
[354600994,1740595842336,-1235.9,0.00035616,14]
[354600996,1740595842346,-583.0,0.00035616,14]
[354600998,1740595842355,-500.0,0.00035616,14]
[354601000,1740595842365,-642.59,0.00035616,14]
[354601002,1740595842374,-500.0,0.00035616,14]
[354601004,1740595842384,-500.0,0.00035616,14]
[354601006,1740595842393,-1162.07,0.00035616,14]
[354601008,1740595842402,-1175.03,0.00035616,14]
[354601010,1740595842411,-501.07621768,0.00035616,14]
[354601012,1740595842420,-500.0,0.00035616,14]
[354601014,1740595842430,-1123.12,0.00035616,14]
[354601016,1740595842439,-1360.38,0.00035616,14]
[354601018,1740595842451,-500.0,0.00035616,14]
[354601020,1740595842460,-990.04,0.00035616,14]
[354601022,1740595842470,-500.0,0.00035616,14]
[354601024,1740595842479,-500.0,0.00035616,14]
[354601026,1740595842489,-500.0,0.00035616,14]
[354601028,1740595842498,-758.81,0.00035616,14]
[354601030,1740595842507,-500.0,0.00035616,14]
[354601032,1740595842517,-743.78,0.00035616,14]
[354601034,1740595842526,-1858.11,0.00035616,14]
[354601036,1740595842535,-836.2,0.00035616,14]
[354601038,1740595842545,-500.0,0.00035616,14]
[354601040,1740595842555,-552.16,0.00035616,14]
[354601042,1740595842566,-500.0,0.00035616,14]
[354601044,1740595842576,-957.01,0.00035616,14]
[354601046,1740595842585,-1949.61,0.00035616,14]
[354601048,1740595842595,-1008.01,0.00035616,14]
[354601050,1740595842606,-500.0,0.00035616,14]
[354601052,1740595842616,-1466.22,0.00035616,14]
[354601054,1740595842627,-1152.19,0.00035616,14]
[354601056,1740595842637,-500.0,0.00035616,14]
[354601058,1740595842647,-500.0,0.00035616,14]
[354601060,1740595842657,-2482.2,0.00035616,14]
[354601062,1740595842666,-1828.52,0.00035616,14]
[354601064,1740595842676,-500.0,0.00035616,14]
[354601066,1740595842686,-527.63,0.00035616,14]
[354601067,1740595842695,-500.0,0.00035616,14]
[354601070,1740595842705,-873.77,0.00035616,14]
[354601071,1740595842715,-500.0,0.00035616,14]
[354601073,1740595842725,-500.0,0.00035616,14]
[354601076,1740595842735,-1665.67,0.00035616,14]
[354601078,1740595842745,-500.0,0.00035616,14]
[354601080,1740595842754,-1934.6,0.00035616,14]
[354601082,1740595842763,-500.0,0.00035616,14]
[354601084,1740595842773,-786.06,0.00035616,14]
[354601087,1740595842782,-312.37552443,0.00035616,14]
[354601089,1740595842792,-1875.12,0.00035616,14]
[354601092,1740595842802,-1075.72,0.00035616,14]
[354601095,1740595842814,-554.85,0.00035616,14]
[354601099,1740595842823,-500.0,0.00035616,14]
[354601101,1740595842833,-956.32,0.00035616,14]
[354601105,1740595842844,-1163.37,0.00035616,14]
[354601108,1740595842854,-500.0,0.00035616,14]
[354601112,1740595842863,-500.0,0.00035616,14]
[354601116,1740595842873,-500.0,0.00035616,14]
[354601120,1740595842882,-1037.67,0.00035616,14]
[354601124,1740595842892,-500.0,0.00035616,14]
[354601127,1740595842901,-2110.11,0.00035616,14]
[354601130,1740595842911,-655.67,0.00035616,14]
[354601136,1740595842921,-500.0,0.00035616,14]
[354601140,1740595842934,-500.0,0.00035616,14]
[354601144,1740595842944,-500.0,0.00035616,14]
[354601148,1740595842954,-500.0,0.00035616,14]
[354601154,1740595842964,-500.0,0.00035616,14]
[354601159,1740595842976,-519.01,0.00035616,14]
[354601165,1740595842987,-500.0,0.00035616,14]
[354601171,1740595842997,-500.0,0.00035616,14]
[354601177,1740595843007,-754.12,0.00035616,14]
[354601183,1740595843017,-500.0,0.00035616,14]
[354601189,1740595843027,-500.0,0.00035616,14]
[354601195,1740595843038,-500.0,0.00035616,14]
[354601201,1740595843047,-1595.01,0.00035616,14]
[354601208,1740595843060,-1351.39,0.00035616,14]
[354601214,1740595843071,-500.0,0.00035616,14]
[354601219,1740595843081,-500.0,0.00035616,14]
[354601223,1740595843092,-500.0,0.00035616,14]
[354601227,1740595843101,-978.64,0.00035616,14]
[354601231,1740595843112,-500.0,0.00035616,14]
[354601235,1740595843123,-290.95649899,0.00035616,14]
[354601239,1740595843134,-883.23,0.00035616,14]
[354601243,1740595843144,-500.0,0.00035616,14]
[354601248,1740595843154,-500.0,0.00035616,14]
[354601252,1740595843163,-500.0,0.00035616,14]
[354601256,1740595843173,-544.48,0.00035616,14]
[354601259,1740595843182,-1282.93,0.00035616,14]
[354601263,1740595843192,-500.0,0.00035616,14]
[354601267,1740595843201,-500.0,0.00035616,14]
[354601271,1740595843211,-500.0,0.00035616,14]
[354601275,1740595843220,-1979.65,0.00035616,14]
[354601280,1740595843230,-500.0,0.00035616,14]
[354601284,1740595843240,-500.0,0.00035616,14]
[354601287,1740595843249,-500.0,0.00035616,14]
[354601291,1740595843259,-1465.82,0.00035616,14]
[354601294,1740595843268,-500.0,0.00035616,14]
[354601297,1740595843278,-500.0,0.00035616,14]
[354601298,1740595843287,-500.0,0.00035616,14]
[354601300,1740595843296,-500.0,0.00035616,14]
[354601302,1740595843305,-513.47989501,0.00035616,14]
[354601305,1740595843317,-1395.89,0.00035616,14]
[354601307,1740595843326,-504.09108458,0.00035616,14]
[354601309,1740595843336,-854.86,0.00035616,14]
[354601311,1740595843346,-1505.0,0.00035616,14]
[354601313,1740595843355,-924.09,0.00035616,14]
[354601315,1740595843364,-711.08,0.00035616,14]
[354601317,1740595843374,-552.43,0.00035616,14]
[354601319,1740595843383,-500.0,0.00035616,14]
[354601320,1740595843392,-895.76,0.00035616,14]
[354601322,1740595843401,-500.0,0.00035616,14]
[354601324,1740595843411,-500.0,0.00035616,14]
[354601327,1740595843420,-500.0,0.00035616,14]
[354601329,1740595843430,-932.59,0.00035616,14]
[354601330,1740595843439,-500.0,0.00035616,14]
[354601332,1740595843448,-1558.86,0.00035616,14]
[354601334,1740595843458,-912.19,0.00035616,14]
[354601336,1740595843467,-551.46,0.00035616,14]
[354601338,1740595843477,-500.0,0.00035616,14]
[354601340,1740595843486,-500.0,0.00035616,14]
[354601342,1740595843495,-500.0,0.00035616,14]
[354601344,1740595843504,-500.0,0.00035616,14]
[354601346,1740595843513,-3271.55,0.00035616,14]
[354601348,1740595843523,-3117.32,0.00035616,14]
[354601350,1740595843531,-500.0,0.00035616,14]
[354601352,1740595843540,-500.0,0.00035616,14]
[354601354,1740595843550,-500.0,0.00035616,14]
[354601356,1740595843561,-896.05,0.00035616,14]
[354601359,1740595843570,-1469.5,0.00035616,14]
[354601362,1740595843579,-500.0,0.00035616,14]
[354601364,1740595843588,-500.0,0.00035616,14]
[354601366,1740595843598,-500.0,0.00035616,14]
[354601368,1740595843607,-500.0,0.00035616,14]
[354601370,1740595843616,-1970.34,0.00035616,14]
[354601373,1740595843625,-1219.67,0.00035616,14]
[354601375,1740595843635,-500.0,0.00035616,14]
[354601377,1740595843645,-500.0,0.00035616,14]
[354601379,1740595843654,-500.0,0.00035616,14]
[354601381,1740595843663,-500.0,0.00035616,14]
[354601383,1740595843672,-1258.23,0.00035616,14]
[354601385,1740595843682,-802.71,0.00035616,14]
[354601387,1740595843691,-12754.69,0.00035616,14]
[354601389,1740595843700,-1003.98,0.00035616,14]
[354601391,1740595843710,-500.0,0.00035616,14]
[354601393,1740595843720,-1048.22,0.00035616,14]
[354601395,1740595843729,-500.0,0.00035616,14]
[354601397,1740595843739,-500.0,0.00035616,14]
[354601399,1740595843748,-500.0,0.00035616,14]
[354601401,1740595843758,-760.48,0.00035616,14]
[354601403,1740595843767,-1559.74,0.00035616,14]
[354601405,1740595843777,-1812.71,0.00035616,14]
[354601407,1740595843786,-1039.17,0.00035616,14]
[354601409,1740595843797,-500.0,0.00035616,14]
[354601411,1740595843808,-968.47,0.00035616,14]
[354601413,1740595843817,-503.79504873,0.00035616,14]
[354601415,1740595843826,-975.3,0.00035616,14]
[354601417,1740595843835,-3225.12,0.00035616,14]
[354601419,1740595843844,-3225.12,0.00035616,14]
[354601421,1740595843853,-3225.12,0.00035616,14]
[354601423,1740595843863,-884.61,0.00035616,14]
[354601425,1740595843872,-3225.12,0.00035616,14]
[354601426,1740595843881,-3225.12,0.00035616,14]
[354601428,1740595843891,-3225.12,0.00035616,14]
[354601431,1740595843900,-3225.12,0.00035616,14]
[354601432,1740595843910,-3225.12,0.00035616,14]
[354601434,1740595843920,-581.51,0.00035616,14]
[354601436,1740595843931,-677.65,0.00035616,14]
[354601438,1740595843942,-3225.12,0.00035616,14]
[354601440,1740595843951,-3225.12,0.00035616,14]
[354601442,1740595843960,-500.0,0.00035616,14]
[354601444,1740595843970,-3225.12,0.00035616,14]
[354601447,1740595843981,-3225.12,0.00035616,14]
[354601448,1740595843991,-508.56989483,0.00035616,14]
[354601450,1740595844000,-3225.12,0.00035616,14]
[354601453,1740595844009,-2979.16,0.00035616,14]
[354601454,1740595844021,-3225.12,0.00035616,14]
[354601456,1740595844030,-3225.12,0.00035616,14]
[354601458,1740595844039,-500.0,0.00035616,14]